fUSD/lending_fUSD_20260615
["ID","MTS","AMOUNT","RATE_DAILY","PERIOD"]
[425088154,1781478639000,-500.0,0.00013151,2]
[425088148,1781478639000,-200.0,0.00013151,2]
[425088157,1781478639000,-150.0,0.00013151,2]
[425088136,1781478639000,-150.0,0.00013151,2]
[425088150,1781478639000,-500.0,0.00013151,2]
[425088142,1781478639000,-150.0,0.00013151,2]
[425088140,1781478639000,-200.0,0.00013151,2]
[425088156,1781478639000,-231.40241046,0.00013151,2]
[425088138,1781478639000,-385.47242222,0.00013151,2]
[425088152,1781478639000,-500.0,0.00013151,2]
[425088144,1781478639000,-150.0,0.00013151,2]
[425088166,1781478639000,-15151.30877638,0.00013322,2]
[425088161,1781478639000,-1147.02,0.00013159,2]
[425088160,1781478639000,-251.606539,0.00013155,2]
[425088046,1781478639000,-500.0,0.00013151,2]
[425088158,1781478639000,-1557.58719161,0.00013154,2]
[425088168,1781478639000,-674.0,0.00013333,5]
[425088167,1781478639000,-255.86922144,0.00013328,2]
[425088128,1781478639000,-464.46218591,0.00013151,2]
[425088120,1781478639000,-449.0,0.00013151,2]
[425088164,1781478639000,-752.14783221,0.00013166,2]
[425088110,1781478639000,-449.0,0.00013151,2]
[425088118,1781478639000,-449.0,0.00013151,2]
[425088044,1781478639000,-500.0,0.00013151,2]
[425088062,1781478639000,-500.0,0.00013151,2]
[425088060,1781478639000,-500.0,0.00013151,2]
[425088070,1781478639000,-449.0,0.00013151,2]
[425088085,1781478639000,-500.0,0.00013151,2]
[425088076,1781478639000,-449.0,0.00013151,2]
[425088079,1781478639000,-500.0,0.00013151,2]
[425088081,1781478639000,-449.0,0.00013151,2]
[425088083,1781478639000,-500.0,0.00013151,2]
[425088069,1781478639000,-449.0,0.00013151,2]
[425088075,1781478639000,-449.0,0.00013151,2]
[425088068,1781478639000,-449.0,0.00013151,2]
[425088071,1781478639000,-449.0,0.00013151,2]
[425088064,1781478639000,-297.92986354,0.00013151,2]
[425088067,1781478639000,-449.0,0.00013151,2]
[425088073,1781478639000,-449.0,0.00013151,2]
[425088108,1781478639000,-150.0,0.00013151,2]
[425088105,1781478639000,-449.0,0.00013151,2]
[425088097,1781478639000,-449.0,0.00013151,2]
[425088095,1781478639000,-523.29570536,0.00013151,2]
[425088101,1781478639000,-449.0,0.00013151,2]
[425088093,1781478639000,-449.0,0.00013151,2]
[425088089,1781478639000,-500.0,0.00013151,2]
[425088099,1781478639000,-449.0,0.00013151,2]
[425088091,1781478639000,-515.7929916,0.00013151,2]
[425088103,1781478639000,-150.0,0.00013151,2]
[425088087,1781478639000,-449.0,0.00013151,2]
[425088190,1781478640000,-466.0,0.00013424,2]
[425088210,1781478640000,-190.579194,0.00013424,2]
[425088199,1781478640000,-466.0,0.00013424,2]
[425088195,1781478640000,-466.0,0.00013424,2]
[425088200,1781478640000,-466.0,0.00013424,2]
[425088203,1781478640000,-466.0,0.00013424,2]
[425088201,1781478640000,-466.0,0.00013424,2]
[425088204,1781478640000,-466.0,0.00013424,2]
[425088206,1781478640000,-466.0,0.00013424,2]
[425088205,1781478640000,-466.0,0.00013424,2]
[425088202,1781478640000,-466.0,0.00013424,2]
[425088222,1781478640000,-500.0,0.00013698,2]
[425088209,1781478640000,-468.48877466,0.00013424,2]
[425088207,1781478640000,-466.0,0.00013424,2]
[425088212,1781478640000,-207.71124,0.00013491,2]
[425088215,1781478640000,-7913.0859461,0.00013688,2]
[425088214,1781478640000,-24799.20287708,0.0001366,2]
[425088213,1781478640000,-1000.0,0.000135,2]
[425088219,1781478640000,-500.0,0.00013698,2]
[425088218,1781478640000,-500.0,0.00013698,2]
[425088220,1781478640000,-500.0,0.00013698,2]
[425088189,1781478640000,-466.0,0.00013424,2]
[425088216,1781478640000,-500.0,0.00013698,2]
[425088208,1781478640000,-466.0,0.00013424,2]
[425088194,1781478640000,-466.0,0.00013424,2]
[425088182,1781478640000,-1218.3903579,0.00013423,2]
[425088197,1781478640000,-466.0,0.00013424,2]
[425088217,1781478640000,-500.0,0.00013698,2]
[425088170,1781478640000,-500.0,0.00013356,2]
[425088172,1781478640000,-150.0,0.00013364,2]
[425088171,1781478640000,-150.0,0.00013364,2]
[425088169,1781478640000,-24799.20287708,0.00013338,2]
[425088173,1781478640000,-150.0,0.00013364,2]
[425088174,1781478640000,-150.0,0.00013364,2]
[425088186,1781478640000,-466.0,0.00013424,2]
[425088176,1781478640000,-150.0,0.00013364,2]
[425088187,1781478640000,-247.9963329,0.00013424,2]
[425088175,1781478640000,-150.0,0.00013364,2]
[425088196,1781478640000,-466.0,0.00013424,2]
[425088177,1781478640000,-150.0,0.00013364,2]
[425088179,1781478640000,-500.0,0.00013415,2]
[425088178,1781478640000,-3036.3262317,0.00013413,2]
[425088180,1781478640000,-2000.0,0.00013415,2]
[425088183,1781478640000,-500.0,0.00013424,2]
[425088185,1781478640000,-500.0,0.00013424,2]
[425088184,1781478640000,-466.0,0.00013424,2]
[425088188,1781478640000,-466.0,0.00013424,2]
[425088191,1781478640000,-466.0,0.00013424,2]
[425088192,1781478640000,-466.0,0.00013424,2]
[425088193,1781478640000,-466.0,0.00013424,2]
[425088198,1781478640000,-466.0,0.00013424,2]
[425088181,1781478640000,-152.51428612,0.00013423,2]
[425088221,1781478640000,-500.0,0.00013698,2]
[425088211,1781478640000,-283.261038,0.00013481,2]
[425088223,1781478640000,-500.0,0.00013698,2]
[425088257,1781478640000,-500.0,0.00013698,2]
[425088255,1781478640000,-631.01,0.00013698,2]
[425088262,1781478640000,-500.0,0.00013698,2]
[425088260,1781478640000,-500.0,0.00013698,2]
[425088261,1781478640000,-500.0,0.00013698,2]
[425088256,1781478640000,-631.01,0.00013698,2]
[425088251,1781478640000,-631.01,0.00013698,2]
[425088252,1781478640000,-631.01,0.00013698,2]
[425088254,1781478640000,-631.01,0.00013698,2]
[425088253,1781478640000,-631.01,0.00013698,2]
[425088263,1781478640000,-500.0,0.00013698,2]
[425088259,1781478640000,-500.0,0.00013698,2]
[425088267,1781478640000,-500.0,0.00013698,2]
[425088268,1781478640000,-500.0,0.00013698,2]
[425088266,1781478640000,-500.0,0.00013698,2]
[425088272,1781478640000,-570.32,0.00013698,2]
[425088269,1781478640000,-500.0,0.00013698,2]
[425088270,1781478640000,-570.32,0.00013698,2]
[425088271,1781478640000,-570.32,0.00013698,2]
[425088274,1781478640000,-570.32,0.00013698,2]
[425088273,1781478640000,-570.32,0.00013698,2]
[425088275,1781478640000,-570.32,0.00013698,2]
[425088276,1781478640000,-570.32,0.00013698,2]
[425088224,1781478640000,-504.0687638,0.00013698,2]
[425088265,1781478640000,-500.0,0.00013698,2]
[425088258,1781478640000,-500.0,0.00013698,2]
[425088264,1781478640000,-500.0,0.00013698,2]
[425088250,1781478640000,-631.01,0.00013698,2]
[425088249,1781478640000,-631.01,0.00013698,2]
[425088228,1781478640000,-500.0,0.00013698,2]
[425088227,1781478640000,-500.0,0.00013698,2]
[425088225,1781478640000,-500.0,0.00013698,2]
[425088230,1781478640000,-500.0,0.00013698,2]
[425088239,1781478640000,-500.0,0.00013698,2]
[425088229,1781478640000,-500.0,0.00013698,2]
[425088226,1781478640000,-500.0,0.00013698,2]
[425088234,1781478640000,-500.0,0.00013698,2]
[425088235,1781478640000,-500.0,0.00013698,2]
[425088277,1781478640000,-570.32,0.00013698,2]
[425088236,1781478640000,-500.0,0.00013698,2]
[425088232,1781478640000,-500.0,0.00013698,2]
[425088231,1781478640000,-500.0,0.00013698,2]
[425088233,1781478640000,-500.0,0.00013698,2]
[425088241,1781478640000,-257.28934228,0.00013698,2]
[425088247,1781478640000,-631.01,0.00013698,2]
[425088245,1781478640000,-631.01,0.00013698,2]
[425088246,1781478640000,-631.01,0.00013698,2]
[425088244,1781478640000,-631.01,0.00013698,2]
[425088248,1781478640000,-631.01,0.00013698,2]
[425088243,1781478640000,-631.01,0.00013698,2]
[425088240,1781478640000,-500.0,0.00013698,2]
[425088238,1781478640000,-500.0,0.00013698,2]
[425088237,1781478640000,-500.0,0.00013698,2]
[425088242,1781478640000,-631.01,0.00013698,2]
[425088331,1781478641000,-1032.9,0.000137,2]
[425088328,1781478641000,-500.0,0.00013699,2]
[425088319,1781478641000,-598.19063289,0.00013699,2]
[425088315,1781478641000,-500.0,0.00013699,2]
[425088313,1781478641000,-500.0,0.00013699,2]
[425088312,1781478641000,-500.0,0.00013699,2]
[425088316,1781478641000,-500.0,0.00013699,2]
[425088317,1781478641000,-500.0,0.00013699,2]
[425088318,1781478641000,-500.0,0.00013699,2]
[425088310,1781478641000,-500.0,0.00013699,2]
[425088311,1781478641000,-500.0,0.00013699,2]
[425088314,1781478641000,-500.0,0.00013699,2]
[425088330,1781478641000,-500.0,0.00013699,2]
[425088340,1781478641000,-500.0,0.00013741,2]
[425088327,1781478641000,-500.0,0.00013699,2]
[425088320,1781478641000,-500.0,0.00013699,2]
[425088321,1781478641000,-500.0,0.00013699,2]
[425088329,1781478641000,-500.0,0.00013699,2]
[425088326,1781478641000,-500.0,0.00013699,2]
[425088324,1781478641000,-500.0,0.00013699,2]
[425088325,1781478641000,-500.0,0.00013699,2]
[425088323,1781478641000,-500.0,0.00013699,2]
[425088333,1781478641000,-150.0,0.00013736,2]
[425088341,1781478641000,-500.0,0.00013741,2]
[425088338,1781478641000,-500.0,0.00013741,2]
[425088309,1781478641000,-500.0,0.00013699,2]
[425088322,1781478641000,-500.0,0.00013699,2]
[425088308,1781478641000,-500.0,0.00013699,2]
[425088282,1781478641000,-570.32,0.00013698,2]
[425088302,1781478641000,-200.0,0.00013699,2]
[425088284,1781478641000,-570.32,0.00013698,2]
[425088278,1781478641000,-570.32,0.00013698,2]
[425088343,1781478641000,-500.0,0.00013741,2]
[425088281,1781478641000,-570.32,0.00013698,2]
[425088280,1781478641000,-570.32,0.00013698,2]
[425088279,1781478641000,-570.32,0.00013698,2]
[425088283,1781478641000,-570.32,0.00013698,2]
[425088285,1781478641000,-500.0,0.00013698,2]
[425088286,1781478641000,-500.0,0.00013698,2]
[425088287,1781478641000,-500.0,0.00013698,2]
[425088288,1781478641000,-500.0,0.00013698,2]
[425088289,1781478641000,-500.0,0.00013698,2]
[425088294,1781478641000,-500.0,0.00013698,2]
[425088293,1781478641000,-500.0,0.00013698,2]
[425088295,1781478641000,-543.64,0.00013698,2]
[425088290,1781478641000,-500.0,0.00013698,2]
[425088292,1781478641000,-500.0,0.00013698,2]
[425088297,1781478641000,-500.0,0.00013698,2]
[425088296,1781478641000,-503.57081224,0.00013698,2]
[425088307,1781478641000,-500.0,0.00013699,2]
[425088298,1781478641000,-500.0,0.00013698,2]
[425088306,1781478641000,-4284.26,0.00013699,2]
[425088299,1781478641000,-500.0,0.00013698,2]
[425088300,1781478641000,-16519.67,0.00013699,2]
[425088301,1781478641000,-9625.6,0.00013699,2]
[425088304,1781478641000,-2500.0,0.00013699,2]
[425088303,1781478641000,-168.74,0.00013699,2]
[425088305,1781478641000,-722.51,0.00013699,2]
[425088342,1781478641000,-500.0,0.00013741,2]
[425088291,1781478641000,-500.0,0.00013698,2]
[425088332,1781478641000,-163.74,0.000137,2]
[425088372,1781478641000,-150.0,0.00014107,2]
[425088378,1781478641000,-500.0,0.00014249,2]
[425088380,1781478641000,-500.0,0.00014249,2]
[425088379,1781478641000,-500.0,0.00014249,2]
[425088371,1781478641000,-150.0,0.00014107,2]
[425088381,1781478641000,-500.0,0.00014249,2]
[425088373,1781478641000,-477.68248327,0.0001421,7]
[425088377,1781478641000,-500.0,0.00014249,2]
[425088374,1781478641000,-151.0,0.00014229,2]
[425088375,1781478641000,-500.0,0.00014249,2]
[425088369,1781478641000,-1904.18,0.00014019,2]
[425088382,1781478641000,-500.0,0.00014249,2]
[425088384,1781478641000,-500.0,0.00014249,2]
[425088385,1781478641000,-500.0,0.00014249,2]
[425088386,1781478641000,-500.0,0.00014249,2]
[425088393,1781478641000,-500.0,0.00014249,2]
[425088388,1781478641000,-500.0,0.00014249,2]
[425088392,1781478641000,-500.0,0.00014249,2]
[425088387,1781478641000,-500.0,0.00014249,2]
[425088383,1781478641000,-500.0,0.00014249,2]
[425088391,1781478641000,-500.0,0.00014249,2]
[425088390,1781478641000,-500.0,0.00014249,2]
[425088395,1781478641000,-500.0,0.00014249,2]
[425088397,1781478641000,-500.0,0.00014249,2]
[425088396,1781478641000,-500.0,0.00014249,2]
[425088394,1781478641000,-500.0,0.00014249,2]
[425088334,1781478641000,-500.0,0.00013741,2]
[425088376,1781478641000,-500.0,0.00014249,2]
[425088370,1781478641000,-171.63,0.00014091,2]
[425088389,1781478641000,-500.0,0.00014249,2]
[425088363,1781478641000,-500.0,0.00013989,2]
[425088357,1781478641000,-3087.97190107,0.00013885,2]
[425088335,1781478641000,-500.0,0.00013741,2]
[425088336,1781478641000,-503.59381649,0.00013741,2]
[425088339,1781478641000,-534.1,0.00013741,2]
[425088351,1781478641000,-168.27,0.00013765,2]
[425088344,1781478641000,-500.0,0.00013741,2]
[425088353,1781478641000,-680.04,0.00013881,2]
[425088355,1781478641000,-2220.89985749,0.00013885,2]
[425088352,1781478641000,-150.0,0.00013859,2]
[425088345,1781478641000,-500.0,0.00013741,2]
[425088347,1781478641000,-683.33,0.00013741,2]
[425088350,1781478641000,-4885.19442,0.00013759,2]
[425088349,1781478641000,-752.14783221,0.00013744,2]
[425088337,1781478641000,-500.0,0.00013741,2]
[425088354,1781478641000,-500.0,0.00013884,2]
[425088348,1781478641000,-226.33260723,0.00013741,2]
[425088362,1781478641000,-24799.20287708,0.00013982,2]
[425088368,1781478641000,-202.105689,0.00014,2]
[425088367,1781478641000,-250.0,0.00014,2]
[425088358,1781478641000,-1948.32316134,0.00013885,2]
[425088364,1781478641000,-500.0,0.00013989,2]
[425088361,1781478641000,-150.0,0.00013958,2]
[425088346,1781478641000,-500.0,0.00013741,2]
[425088360,1781478641000,-3036.3262317,0.00013909,2]
[425088356,1781478641000,-4722.40181848,0.00013885,2]
[425088366,1781478641000,-1500.0,0.00014,2]
[425088359,1781478641000,-884.22,0.00013905,2]
[425088365,1781478641000,-60000.0,0.0001399,2]
[425088421,1781478642000,-500.0,0.00014249,2]
[425088422,1781478642000,-500.0,0.00014249,2]
[425088423,1781478642000,-500.0,0.00014249,2]
[425088430,1781478642000,-500.0,0.00014249,2]
[425088429,1781478642000,-500.0,0.00014249,2]
[425088419,1781478642000,-500.0,0.00014249,2]
[425088432,1781478642000,-500.0,0.00014249,2]
[425088431,1781478642000,-500.0,0.00014249,2]
[425088433,1781478642000,-500.0,0.00014249,2]
[425088436,1781478642000,-500.0,0.00014249,2]
[425088440,1781478642000,-500.0,0.00014249,2]
[425088437,1781478642000,-500.0,0.00014249,2]
[425088439,1781478642000,-500.0,0.00014249,2]
[425088434,1781478642000,-500.0,0.00014249,2]
[425088438,1781478642000,-500.0,0.00014249,2]
[425088444,1781478642000,-500.0,0.00014249,2]
[425088447,1781478642000,-151.0,0.00014249,2]
[425088443,1781478642000,-500.0,0.00014249,2]
[425088445,1781478642000,-309.08619992,0.00014249,2]
[425088427,1781478642000,-500.0,0.00014249,2]
[425088442,1781478642000,-500.0,0.00014249,2]
[425088435,1781478642000,-500.0,0.00014249,2]
[425088420,1781478642000,-500.0,0.00014249,2]
[425088409,1781478642000,-500.0,0.00014249,2]
[425088418,1781478642000,-500.0,0.00014249,2]
[425088450,1781478642000,-200.63335723,0.00014249,2]
[425088399,1781478642000,-500.0,0.00014249,2]
[425088405,1781478642000,-500.0,0.00014249,2]
[425088406,1781478642000,-500.0,0.00014249,2]
[425088398,1781478642000,-500.0,0.00014249,2]
[425088404,1781478642000,-500.0,0.00014249,2]
[425088403,1781478642000,-500.0,0.00014249,2]
[425088402,1781478642000,-500.0,0.00014249,2]
[425088400,1781478642000,-500.0,0.00014249,2]
[425088401,1781478642000,-500.0,0.00014249,2]
[425088407,1781478642000,-500.0,0.00014249,2]
[425088408,1781478642000,-500.0,0.00014249,2]
[425088410,1781478642000,-500.0,0.00014249,2]
[425088411,1781478642000,-500.0,0.00014249,2]
[425088416,1781478642000,-500.0,0.00014249,2]
[425088412,1781478642000,-500.0,0.00014249,2]
[425088413,1781478642000,-500.0,0.00014249,2]
[425088414,1781478642000,-500.0,0.00014249,2]
[425088415,1781478642000,-500.0,0.00014249,2]
[425088417,1781478642000,-500.0,0.00014249,2]
[425088426,1781478642000,-500.0,0.00014249,2]
[425088425,1781478642000,-500.0,0.00014249,2]
[425088424,1781478642000,-500.0,0.00014249,2]
[425088428,1781478642000,-500.0,0.00014249,2]
[425088441,1781478642000,-500.0,0.00014249,2]
[425088471,1781478642000,-300.0,0.00014399,2]
[425088453,1781478642000,-150.0,0.00014255,2]
[425088486,1781478642000,-500.0,0.00014499,2]
[425088493,1781478642000,-500.0,0.00014499,2]
[425088495,1781478642000,-683.33,0.00014499,2]
[425088494,1781478642000,-500.0,0.00014499,2]
[425088492,1781478642000,-500.0,0.00014499,2]
[425088488,1781478642000,-500.0,0.00014499,2]
[425088490,1781478642000,-500.0,0.00014499,2]
[425088487,1781478642000,-534.1,0.00014499,2]
[425088491,1781478642000,-500.0,0.00014499,2]
[425088489,1781478642000,-500.0,0.00014499,2]
[425088485,1781478642000,-500.0,0.00014499,2]
[425088496,1781478642000,-1700.0,0.000145,5]
[425088500,1781478642000,-1700.0,0.000146,5]
[425088502,1781478642000,-199.3296886,0.00014602,2]
[425088498,1781478642000,-150.0,0.00014552,2]
[425088503,1781478642000,-151.0,0.0001463,2]
[425088501,1781478642000,-1019.12011878,0.00014602,2]
[425088499,1781478642000,-2000.0,0.000146,2]
[425088504,1781478642000,-350.0,0.00014672,2]
[425088505,1781478642000,-500.0,0.00014684,2]
[425088449,1781478642000,-156.587,0.00014249,2]
[425088507,1781478642000,-1700.0,0.000147,5]
[425088497,1781478642000,-350.0,0.00014552,2]
[425088484,1781478642000,-510.79198853,0.00014499,2]
[425088506,1781478642000,-500.0,0.00014684,2]
[425088481,1781478642000,-8284.86,0.00014497,2]
[425088478,1781478642000,-150.0,0.00014478,2]
[425088451,1781478642000,-147242.20032301,0.0001425,2]
[425088467,1781478642000,-289.64,0.00014335,2]
[425088469,1781478642000,-631.01,0.00014399,2]
[425088470,1781478642000,-570.32,0.00014399,2]
[425088455,1781478642000,-24799.20287708,0.00014304,2]
[425088468,1781478642000,-150.0,0.00014354,2]
[425088457,1781478642000,-1019.12011879,0.00014304,2]
[425088463,1781478642000,-22665.4517892,0.00014322,2]
[425088459,1781478642000,-199.3296886,0.00014304,2]
[425088460,1781478642000,-631.01,0.00014321,2]
[425088452,1781478642000,-150.0,0.00014255,2]
[425088465,1781478642000,-30667.1607,0.00014322,2]
[425088461,1781478642000,-570.32,0.00014321,2]
[425088480,1781478642000,-891.21,0.00014497,2]
[425088479,1781478642000,-2862.54,0.00014497,2]
[425088477,1781478642000,-500.0,0.00014448,2]
[425088483,1781478642000,-500.0,0.00014499,2]
[425088476,1781478642000,-500.0,0.00014448,2]
[425088475,1781478642000,-300.0,0.00014425,2]
[425088474,1781478642000,-3036.3262317,0.00014404,2]
[425088472,1781478642000,-354235.75716467,0.000144,2]
[425088462,1781478642000,-752.14783221,0.00014322,2]
[425088482,1781478642000,-558.41,0.00014497,2]
[425088548,1781478643000,-200.0,0.0001488,2]
[425088538,1781478643000,-150.0,0.00014849,2]
[425088533,1781478643000,-1700.0,0.000148,5]
[425088536,1781478643000,-744.4147793,0.00014847,2]
[425088535,1781478643000,-570.32,0.00014843,2]
[425088540,1781478643000,-44799.33023697,0.0001485,2]
[425088539,1781478643000,-150.0,0.00014849,2]
[425088547,1781478643000,-200.0,0.00014879,2]
[425088537,1781478643000,-150.0,0.00014849,2]
[425088544,1781478643000,-412.68712,0.0001485,2]
[425088543,1781478643000,-412.68712,0.0001485,2]
[425088541,1781478643000,-3603.002,0.0001485,2]
[425088546,1781478643000,-412.68712,0.0001486,2]
[425088542,1781478643000,-249.632,0.0001485,2]
[425088550,1781478643000,-500.0,0.00014887,2]
[425088552,1781478643000,-500.0,0.00014899,2]
[425088553,1781478643000,-500.0,0.00014899,2]
[425088551,1781478643000,-500.0,0.00014887,2]
[425088549,1781478643000,-200.0,0.0001488,2]
[425088531,1781478643000,-350.0,0.000148,2]
[425088545,1781478643000,-502.35889749,0.00014856,2]
[425088534,1781478643000,-631.01,0.00014843,2]
[425088519,1781478643000,-500.0,0.00014726,2]
[425088530,1781478643000,-300.0,0.00014799,2]
[425088554,1781478643000,-500.0,0.00014899,2]
[425088508,1781478643000,-350.0,0.00014705,2]
[425088510,1781478643000,-500.0,0.00014726,2]
[425088509,1781478643000,-1500.0,0.00014719,2]
[425088511,1781478643000,-500.0,0.00014726,2]
[425088512,1781478643000,-500.0,0.00014726,2]
[425088513,1781478643000,-500.0,0.00014726,2]
[425088514,1781478643000,-500.0,0.00014726,2]
[425088516,1781478643000,-500.0,0.00014726,2]
[425088515,1781478643000,-500.0,0.00014726,2]
[425088518,1781478643000,-500.0,0.00014726,2]
[425088521,1781478643000,-579.2933229,0.00014726,2]
[425088520,1781478643000,-500.0,0.00014726,2]
[425088522,1781478643000,-500.0,0.00014726,2]
[425088525,1781478643000,-500.0,0.00014726,2]
[425088526,1781478643000,-500.0,0.00014726,2]
[425088524,1781478643000,-500.0,0.00014726,2]
[425088523,1781478643000,-500.0,0.00014726,2]
[425088527,1781478643000,-500.0,0.00014726,2]
[425088528,1781478643000,-240.68764534,0.00014726,2]
[425088529,1781478643000,-170.63172329,0.00014785,2]
[425088532,1781478643000,-2686.0,0.000148,2]
[425088557,1781478643000,-500.0,0.00014899,2]
[425088517,1781478643000,-500.0,0.00014726,2]
[425088558,1781478643000,-500.0,0.00014899,2]
[425088590,1781478643000,-534.1,0.00014899,2]
[425088586,1781478643000,-534.1,0.00014899,2]
[425088585,1781478643000,-534.1,0.00014899,2]
[425088589,1781478643000,-534.1,0.00014899,2]
[425088592,1781478643000,-500.0,0.00014899,2]
[425088595,1781478643000,-500.0,0.00014899,2]
[425088587,1781478643000,-534.1,0.00014899,2]
[425088593,1781478643000,-500.0,0.00014899,2]
[425088597,1781478643000,-500.0,0.00014899,2]
[425088596,1781478643000,-500.0,0.00014899,2]
[425088598,1781478643000,-500.0,0.00014899,2]
[425088608,1781478643000,-631.01,0.00014899,2]
[425088599,1781478643000,-500.0,0.00014899,2]
[425088602,1781478643000,-500.0,0.00014899,2]
[425088606,1781478643000,-500.0,0.00014899,2]
[425088603,1781478643000,-292.56293859,0.00014899,2]
[425088600,1781478643000,-500.0,0.00014899,2]
[425088604,1781478643000,-500.0,0.00014899,2]
[425088601,1781478643000,-500.0,0.00014899,2]
[425088605,1781478643000,-500.0,0.00014899,2]
[425088559,1781478643000,-500.0,0.00014899,2]
[425088594,1781478643000,-500.0,0.00014899,2]
[425088588,1781478643000,-534.1,0.00014899,2]
[425088607,1781478643000,-631.01,0.00014899,2]
[425088579,1781478643000,-534.1,0.00014899,2]
[425088555,1781478643000,-500.0,0.00014899,2]
[425088556,1781478643000,-500.0,0.00014899,2]
[425088564,1781478643000,-500.0,0.00014899,2]
[425088563,1781478643000,-580.45460074,0.00014899,2]
[425088568,1781478643000,-614.4232435,0.00014899,2]
[425088562,1781478643000,-500.0,0.00014899,2]
[425088591,1781478643000,-534.1,0.00014899,2]
[425088560,1781478643000,-500.0,0.00014899,2]
[425088567,1781478643000,-500.0,0.00014899,2]
[425088569,1781478643000,-500.0,0.00014899,2]
[425088561,1781478643000,-500.0,0.00014899,2]
[425088566,1781478643000,-500.0,0.00014899,2]
[425088584,1781478643000,-534.1,0.00014899,2]
[425088582,1781478643000,-534.1,0.00014899,2]
[425088583,1781478643000,-534.1,0.00014899,2]
[425088573,1781478643000,-534.1,0.00014899,2]
[425088574,1781478643000,-534.1,0.00014899,2]
[425088575,1781478643000,-534.1,0.00014899,2]
[425088581,1781478643000,-534.1,0.00014899,2]
[425088570,1781478643000,-534.1,0.00014899,2]
[425088565,1781478643000,-500.0,0.00014899,2]
[425088576,1781478643000,-534.1,0.00014899,2]
[425088638,1781478644000,-500.0,0.00014899,2]
[425088640,1781478644000,-500.0,0.00014899,2]
[425088639,1781478644000,-500.0,0.00014899,2]
[425088632,1781478644000,-570.32,0.00014899,2]
[425088634,1781478644000,-570.36,0.00014899,2]
[425088635,1781478644000,-500.0,0.00014899,2]
[425088631,1781478644000,-570.32,0.00014899,2]
[425088633,1781478644000,-570.32,0.00014899,2]
[425088641,1781478644000,-500.0,0.00014899,2]
[425088654,1781478644000,-500.0,0.00014899,2]
[425088646,1781478644000,-500.0,0.00014899,2]
[425088642,1781478644000,-466.102207,0.00014899,2]
[425088647,1781478644000,-500.0,0.00014899,2]
[425088643,1781478644000,-500.0,0.00014899,2]
[425088648,1781478644000,-500.0,0.00014899,2]
[425088644,1781478644000,-500.0,0.00014899,2]
[425088649,1781478644000,-500.0,0.00014899,2]
[425088653,1781478644000,-500.0,0.00014899,2]
[425088637,1781478644000,-500.0,0.00014899,2]
[425088645,1781478644000,-500.0,0.00014899,2]
[425088630,1781478644000,-570.32,0.00014899,2]
[425088619,1781478644000,-500.0,0.00014899,2]
[425088629,1781478644000,-570.32,0.00014899,2]